Cogmind - Beta 14 @@@ ROGUE MODE // 2024.09.17 @ 23:56:57 Player: SunnyVampire Result: Destroyed by D-53 Grenadier with Mini Grenade Launcher Performance ------------- Evolutions (0) 0 Regions Visited (2) 400 Robots Destroyed (19) 95 Value Destroyed (421) 421 Prototype IDs (2) 40 Alien Tech Used (0) 0 Bonus (0) 0 TOTAL SCORE: 956 Bonus ------- None Cogmind --------- Core Integrity 0/250 Matter 300/300 Energy 100/100 System Corruption 0% Temperature Cool (0) Movement Treading (240) Ox1 Location -10/Mines Parts ------- > --- POWER (1) -------- (None) > --- PROPULSION (2) --- Light Treads > --- UTILITY (2) ------ Large Storage Unit Power Shielding > --- WEAPON (2) ------- Light Assault Rifle > --- INVENTORY (15) --- Ion Engine Large Matter Pod (150) Structural Scanner Visual Processing Unit Sensor Array Terrain Scanner Terrain Scan Processor Seismic Detector ECM Suite Light Armor Plating EM Pulse Gun EM Pulse Gun Datajack Proton Bomb Trap Proton Bomb Trap Peak State ------------ > --- POWER ------------ Light Nuclear Core > --- PROPULSION ------- Light Treads Light Treads > --- UTILITY ---------- Large Storage Unit Power Shielding > --- WEAPON ----------- Light Assault Rifle Light Assault Rifle > --- INVENTORY -------- Ion Engine Light Treads Aluminum Leg Large Matter Pod Structural Scanner Visual Processing Unit Sensor Array Terrain Scanner Terrain Scan Processor Seismic Detector ECM Suite Light Armor Plating EM Pulse Gun EM Pulse Gun Datajack [Rating: 10] Favorites ----------- Power Light Ion Engine Engine Light Ion Engine Power Core Light Nuclear Core Propulsion Light Treads Treads Light Treads Utility Large Storage Unit Storage Large Storage Unit Protection Power Shielding Weapon Light Assault Rifle Ballistic Gun Light Assault Rifle Build | -11 -10 -10 ------- Run | Yrd Mat Min Slots Evolved . | . . . Power . | . . . Propulsion . | . . . Utility . | . . . Weapon . | . . . Parts Attached 13 | 6 6 1 Power 3 | 1 2 . Engine 2 | 1 1 . Core 1 | . 1 . Reactor . | . . . Propulsion 3 | 2 . 1 Treads 3 | 2 . 1 Leg . | . . . Wheel . | . . . Hover . | . . . Flight . | . . . Utility 3 | 1 2 . Device . | . . . Storage 2 | 1 1 . Processor . | . . . Hackware . | . . . Protection 1 | . 1 . Artifact . | . . . Weapon 4 | 2 2 . Energy Gun . | . . . Energy Cannon . | . . . Ballistic Gun 4 | 2 2 . Ballistic Cannon . | . . . Launcher . | . . . Special Weapon . | . . . Impact Weapon . | . . . Slashing Weapon . | . . . Piercing Weapon . | . . . Special Melee Weapon . | . . . Unidentified Prototypes . | . . . Parts Lost 3 | . . 3 Power 1 | . . 1 Propulsion 1 | . . 1 Utility . | . . . Weapon 1 | . . 1 Highest Loss Streak 3 | . . 3 To Critical Strikes . | . . . Average Slot Usage (%) 97 | . 97 100 Engine 10 | . 13 . Core 3 | . . 14 Treads 28 | . 28 28 Storage 14 | . 14 14 Protection 11 | . 11 14 Ballistic Gun 28 | . 28 28 Peak Build Rating 10 | 6 10 10 Average Rating 8 | 4 7 9 On Entrance 5 | . 6 10 Naked Turns . | . . . Heaviest Build 32 | 12 32 28 Greatest Support 40 | 40 40 40 Greatest Overweight (x) 1 | . . 1 Average Overweight (x) . | . . . Largest Inventory Capacity 15 | 8 15 15 Average Capacity 14 | 6 14 15 Most Carried 15 | 3 15 15 Average Carried 12 | 1 11 14 Final Capacity 15 | 8 15 15 Final Carried 15 | 3 15 15 Class Distribution -------------------- 85% | Mutant 14% | Scavenger-Mutant Dominant Class ---------------- Mutant | -10/Materials Scavenger-Mutant | -10/Mines Resources | -11 -10 -10 ----------- Run | Yrd Mat Min Matter Collected 616 | 215 341 60 Remotely . | . . . Salvage Created 621 | . 402 219 Parts 44 | . 33 11 Haulers Intercepted 2 | . 2 . Recyclers Shooed . | . . . Parts Field Recycled . | . . . Retrieved Matter . | . . . Parts Self-Destructed . | . . . Prevented . | . . . Kills | -11 -10 -10 ------- Run | Yrd Mat Min Combat Hostiles Destroyed 13 | . 8 5 Guns 13 | . 8 5 Classes Destroyed 7 | . 7 . Builder 1 | . 1 . Hauler 2 | . 2 . Recycler 1 | . 1 . Operator 1 | . 1 . Watcher 1 | . 1 . Swarmer 5 | . 5 . Grunt 8 | . 3 5 Best Kill Streak 3 | . 3 2 Combat Bots Only 3 | . 3 2 Max Kills in Single Turn 1 | . 1 1 Gunslinging . | . . . Exploded . | . . . Melee . | . . . Uniques/NPCs Destroyed . | . . . Combat | -11 -10 -10 -------- Run | Yrd Mat Min Hostile Shots Fired 72 | . 33 39 Missed 14 | . 7 7 Damage Taken 908 | . 245 663 Core 253 | . 50 203 Absorbed by Shields . | . . . Redirected to Shielding 21 | . 8 13 Core Remaining (%) 100 | 100 . . Volleys Fired 68 | . 43 25 Largest 2 | . 2 2 Hottest 40 | . 40 40 Shots Fired 136 | . 86 50 Gun 136 | . 86 50 Cannon . | . . . Launcher . | . . . Special . | . . . Kinetic 136 | . 86 50 Thermal . | . . . Explosive . | . . . Electromagnetic . | . . . Robot Hit Streak 18 | . 9 18 Robot Miss Streak 6 | . 6 1 Penetration Max . | . . . Secondary Targets 1 | . 1 . Max Gunslinging Chain 1 | . 1 . Shots Hit Robots 92 | . 50 42 Core Hits 41 | . 25 16 Critical Kills . | . . . Critical Parts Destroyed 1 | . . 1 Critical Strikes 1 | . . 1 Destroy 1 | . . 1 Melee Attacks . | . . . Impact . | . . . Slashing . | . . . Piercing . | . . . Sneak Attacks . | . . . Combat Hostiles . | . . . Follow-up Attacks . | . . . Damage Inflicted 761 | . 423 338 Guns 738 | . 405 333 Cannons . | . . . Explosions . | . . . Melee . | . . . Ramming 23 | . 18 5 Kinetic 738 | . 405 333 Thermal . | . . . Explosive . | . . . Electromagnetic . | . . . Impact . | . . . Slashing . | . . . Piercing . | . . . Highest Corruption . | . . . Average Corruption . | . . . Corruption Purged . | . . . Corruption Blocked . | . . . Overload Shots . | . . . Overflow Damage . | . . . Projectiles . | . . . Explosions . | . . . Melee . | . . . Knockbacks . | . . . Impact . | . . . Kinetic . | . . . Secondary . | . . . Self-Inflicted Damage . | . . . Shots . | . . . Rammed 3 | . 2 1 Targets Rammed 4 | . 3 1 Kicked . | . . . Crushed 1 | . 1 . Highest Temperature 64 | . 9 64 Average Temperature 25 | . 9 26 Received Heat Transfer 279 | . 42 237 Siege Activations . | . . . Robots Corrupted . | . . . Combat Hostiles . | . . . Parts Fried . | . . . Impact Corruptions . | . . . Robots Melted . | . . . Combat Hostiles . | . . . Parts Melted . | . . . Heat Transferred . | . . . Parts Sabotaged . | . . . Parts Stolen . | . . . Parts Stripped . | . . . Power Chain Reactions . | . . . Alert | -11 -10 -10 ------- Run | Yrd Mat Min Peak Influence 155 | . 117 155 Initial . | . . . Average 38 | . 35 55 Maximum Alert Level . | . . . Low Security (%) 100 | 100 100 100 Level 1 . | . . . Level 2 . | . . . Level 3 . | . . . Level 4 . | . . . Level 5 . | . . . High Security . | . . . Max Security . | . . . Squads Dispatched 2 | . 2 . Investigation 2 | . 2 . Extermination . | . . . Reinforcement . | . . . Assault . | . . . Garrison . | . . . Intercept . | . . . Searches Triggered . | . . . Construction Impeded . | . . . Haulers Reinforced . | . . . Active Scanning Responses . | . . . Cargo Convoy Interrupts . | . . . Stealth | -11 -10 -10 --------- Run | Yrd Mat Min Distress Signals . | . . . Communications Jammed . | . . . Distress Signals . | . . . Times Spotted 24 | . 16 8 Peak Tracking Total 5 | . 5 2 Tactical Retreats 4 | . 3 1 Traps | -11 -10 -10 ------- Run | Yrd Mat Min Traps Triggered . | . . . Indirectly . | . . . Trap Hack Attempts . | . . . Triggered . | . . . Disarmed . | . . . Reprogrammed . | . . . Reused . | . . . Traps Extracted . | . . . Installed . | . . . Triggered 2 | . . 2 Most Traps Carried 2 | . . 2 Machines | -11 -10 -10 ---------- Run | Yrd Mat Min Machines Disabled . | . . . Max in Single Turn . | . . . Machines Repaired . | . . . Machines Dismantled . | . . . Machines Sabotaged . | . . . Overloaded Fab Kills . | . . . Hacking | -11 -10 -10 --------- Run | Yrd Mat Min Machines Accessed 6 | . 6 . Terminals 5 | . 5 . Fabricators . | . . . Repair Stations . | . . . Recycling Units 1 | . 1 . Scanalyzers . | . . . Garrison Access . | . . . Total Hacks 19 | . 19 . Successful 8 | . 8 . Failed 10 | . 10 . Catastrophic 3 | . 3 . Database Lockouts 1 | . 1 . Manual 11 | . 11 . Terminals 17 | . 17 . Fabricators . | . . . Repair Stations . | . . . Recycling Units 2 | . 2 . Scanalyzers . | . . . Garrison Access . | . . . Terminal Hacks 7 | . 7 . Part Schematic 1 | . 1 . Prototype ID Bank 1 | . 1 . Branch Access Points 1 | . 1 . Alert Level 2 | . 2 . Hauler Manifests 1 | . 1 . Registered Components 1 | . 1 . Fabricator Hacks . | . . . Repair Station Hacks . | . . . Recycling Unit Hacks 1 | . 1 . Retrieve Components 1 | . 1 . Scanalyzer . | . . . Garrison Access Hacks . | . . . Unauthorized Hacks . | . . . Terminals . | . . . Fabricators . | . . . Repair Stations . | . . . Recycling Units . | . . . Scanalyzers . | . . . Garrison Access . | . . . Data Cores Recovered . | . . . Used . | . . . Hacking Detections 7 | . 7 . Full Trace Events 2 | . 2 . Feedback Events . | . . . Feedback Blocked . | . . . Robot Schematics Acquired . | . . . Robots Built . | . . . Authchips . | . . . Time . | . . . Total Robot Build Rating . | . . . Part Schematics Acquired 1 | . 1 . Parts Built . | . . . Authchips . | . . . Time . | . . . Total Part Build Rating . | . . . Parts Repaired . | . . . Time . | . . . Parts Recycled . | . . . Recycled Matter . | . . . Retrieved Matter . | . . . Retrieved Components 9 | . 9 . Parts Scanalyzed . | . . . Part Schematics Acquired . | . . . Parts Damaged . | . . . Bothacking | -11 -10 -10 ------------ Run | Yrd Mat Min Used RIF Installer . | . . . Robots Hacked . | . . . Non-combat . | . . . Combat . | . . . Robot Hacks Applied . | . . . Relay Couplers Released . | . . . Fabnet Peak Effective % . | . . . Robots Rewired . | . . . Allies Hacked . | . . . Hacks Repelled . | . . . Allies | -11 -10 -10 -------- Run | Yrd Mat Min Total Allies . | . . . Largest Group . | . . . Highest-Rated Group . | . . . Highest-Rated Ally . | . . . Total Orders . | . . . Ally Attacks . | . . . Total Damage . | . . . Kills . | . . . Allies Corrupted . | . . . Allies Melted . | . . . Intel | -11 -10 -10 ------- Run | Yrd Mat Min Robot Analysis Total . | . . . Derelict Logs Recovered 1 | . . 1 Drone Launches . | . . . Drone Recoveries . | . . . Exploration | -11 -10 -10 ------------- Run | Yrd Mat Min Turns Passed 3067 | 72 2453 542 Spaces Moved 1140 | 40 829 271 Core 3 | 3 . . Treads 1137 | 37 829 271 Legs . | . . . Wheels . | . . . Hover . | . . . Flight . | . . . Fastest Speed 50 | 50 160 160 Average Speed 159 | 151 160 160 Slowest Speed 240 | 160 160 240 Overloaded Moves . | . . . Propulsion Burnouts . | . . . Robots Hopped . | . . . Cave-ins Triggered . | . . . Exploration Rate (%) 43 | 4 86 39 Regions Visited 2 Branch Regions 1 Pre-discovered Areas . | . . . Known Exits Taken 1 | . 1 . Unknown Exits Taken 1 | 1 . . Scrap Searched . | . . . Spaces Dug . | . . . Terrain Destroyed . | . . . Melee . | . . . Projectile . | . . . AOE . | . . . Terrain Rammed . | . . . Walls Destroyed . | . . . Machines Disabled . | . . . Actions | -11 -10 -10 --------- Run | Yrd Mat Min Total 2275 | 48 1889 338 Wait 1014 | . 978 36 Move 1138 | 39 828 271 Hop . | . . . Pick Up 24 | 3 19 2 Fast Attach 8 | 6 2 . Attach . | . . . Detach 1 | . 1 . Swap 5 | . 4 1 Drop 13 | . 11 2 Fire 68 | . 43 25 Melee . | . . . Ram . | . . . Kick . | . . . Crush 4 | . 3 1 Escape Stasis . | . . . Rewire . | . . . Trap . | . . . Miscellaneous . | . . . Route ------- -11/Scrapyard -10/Materials (discovered 4 exits: [*Mat x2] / *Min x2) -10/Mines (discovered 1 exit: [*Exi]) History --------- Turn | Location | Event 16 | -11/Scrapyard | Discovered new exit (range 16) 73 | -11/Scrapyard | Entered Materials 302 | -10/Materials | Build established: Mutant 412 | -10/Materials | Identified exit to Mines 1489 | -10/Materials | Discovered new exit (range 3) 1788 | -10/Materials | Central database locked down 2000 | -10/Materials | Discovered new exit (range 7) 2526 | -10/Materials | Entered Mines 2648 | -10/Mines | Deemed a non-threat by the Exiles lab entrance 2648 | -10/Mines | Discovered new exit (range 5) 2758 | -10/Mines | Found a hidden stash of uninstalled traps 2918 | -10/Mines | Build established: Scavenger-Mutant 3039 | -10/Mines | Assembled infested the area 3044 | -10/Mines | Assisted by a Guerilla fighting off Assembled 3066 | -10/Mines | Core integrity fell below 50% 3068 | -10/Mines | Core integrity fell below 20% 3068 | -10/Mines | Destroyed by D-53 Grenadier with Mini Grenade Launcher Last Messages --------------- 02925_ Acquired 18 matter. 02926_ Slammed into U-05 Engineer. 02948_ K-01 Serf collects debris. 03022_ Acquired derelict log, extracted data. Data stored: Storage entrances (x1). 03039_ ALERT: Infestation in the mines, dispatching Demolisher response squad. 03044_ A derelict emerges from the shadows: "You need to get out of here! I've been tracking a group of Assembled to figure out where they're coming from, and they're closing on this area, come on!" 03063_ C-30 ARC bursts open, deploying its payload. 03063_ D-53 Grenadier unfolds itself. 03064_ Lgt. Treads destroyed. 03064_ Lgt. Nuclear Core destroyed. 03065_ R-06 Scavenger destroyed. 03066_ Lgt. Assault Rifle destroyed. 03066_ R-06 Scavenger destroyed. Map ----- +----------------------------------------------------+ | ?????????????????????????????????????????????????? | | ?????????????????????????????????????????????????? | | ?????????????????????????????????????????????????? | | ?????????????????????????????????????????????????? | | ?????????????????????????????????????????????????? | | ?????????????????????????????????????????????????? | | ?????????????????????????????????????????????????? | | ?????????????????????????????????????????????????? | | ???????????????????????????? ????????????????????? | | ???????????????????????????? ??????????????????? | | ???????????????????????????? ????????????????? | | ???????????????????????????? ????????????????? | | ??????????????????????????? t ?###????????????? | | ??????????????????????????? ? ????????????? | | ????????????? ??????????? ??# #????????????? | | ????????????? #?????????? ??# #????????????? | | ????????????? ##???????? ???# #????????????? | | ????????????? ####???? ????# #????????????? | | ?????????????? ##?? ????# #???????? ???? | | ????????????????# ### ?????# #???????? ???? | | ?????????????????# %# ##????# #???????? ???? | | ??????????????????# d ###### #???????? ???? | | ???????????????????# ! d u #???????? ???? | | ???????????????????#*%* #######???????? ???? | | ???????????????????#=[% #?????????????? ???? | | ??????????????????##[== @ ##?????????????# #??? | | ????????????????### !* #?????????????# #??? | | ????????????????# #?####????????# #??? | | ????????????????# ##?# #????????# #??? | | ????????????????# ####?## #????????# #??? | | ????????????????## ##### #????????# #??? | | ?????????????????### ## ####?????# #??? | | ???????????????????## #?????# #??? | | ????????????????????# ### #?????# #??? | | ???????????????????# ###?# #?????#*#??? | | ???????????????????# ### ##???# #?????#%#### | | ???????????????????# ##?# ####### ###???# | | ???????????????????######??# #???###### | | ???????????????????????????# ######### #????????# | | ???????????????????????????# #???????# #????????# | | ?????????????????????####### #???????# ########## | | ????????????????????## & #???????# | | ????????????????????# & ######??############ | | ????????????????????# & =[=%=#?????????????? | | ????????????????????# ####=#?????????????? | | ????????????????????## ## ##??#!##????????????? | | ?????????????????????###?#####??## ##???????????? | | ???????????????????????????????## #???????????? | | ???????????????????????????????# #???????????? | | ????????????????????########??## ##???????????? | +----------------------------------------------------+ Best States ------------- Heat Dissipation 25 Energy Generation 14 Energy Capacity 250 Matter Stores 300 Matter Capacity 300 Sight Range 16 Terrain Scan Density 10 Power Shielding 33 Evasion (%) 40 Recoil Reduction 2 Item Schematics ----------------- Grenade Launcher | -10/Materials | Hacked Robot Schematics ------------------ None Fabricated ------------ Nothing Alien Tech Used ----------------- None Achievements -------------- None Challenges ------------ None Game ------ Seed ThunderMeleeTerrabomb Manual? 0 Play Time 00:24:22 Cumulative 9.4 hours Start 2024.09.17 @ 23:12:26 End 2024.09.17 @ 23:56:57 Sessions 1 Manual Loads 0 Difficulty Rogue Special Mode None Game No. 15 Rogue 15 Adventurer 0 Explorer 0 Win Type - Total 0 Types 0/0/0/0/0/0/0/0/0 Lore% 9 Gallery% 8 Achievement% 14 Wizard Run 0 Options --------- Layout 1 ASCII 0 Keyboard 1 Movement Numpad Keybinds 0 Fullscreen 1 Font 24/Smallcaps Map View 50x35 Zoom Use 0% Tactical HUD 1 Map Filters NONE Filters NONE Steam 1 RUN: 6d28e6f0-cdda-4113-be6c-0e1a6d502a9f